bitfinex/quotes_SOLUSD_20241116
["timestamp","ask_amount","ask_price","bid_price","bid_amount"]
[1731762053009,0.1,219.01,218.87,0.1]
[1731762053319,0.09367462,219.0,218.87,0.1]
[1731762053822,0.34465462,218.98,218.83,0.1]
[1731762054036,0.34465462,218.96,218.87,0.1]
[1731762056931,0.34465462,218.96,218.85,0.1]
[1731762057232,0.34465462,218.96,218.83,0.1]
[1731762057527,0.34465462,218.96,218.85,0.1]
[1731762058521,0.34465462,218.96,218.87,0.1]
[1731762060328,0.34465462,218.96,218.83,0.1]
[1731762061309,0.34465462,218.96,218.81,0.1]
[1731762061815,0.34465462,218.96,218.82,0.1]
[1731762062135,0.12549,218.96,218.87,0.1]
[1731762062320,0.1,219.03,218.89,0.1]
[1731762062633,0.09367462,219.02,218.89,0.1]
[1731762063231,0.09367462,219.0,218.89,0.1]
[1731762063433,0.21916462,219.0,218.89,0.1]
[1731762063728,0.09367462,218.96,218.89,0.1]
[1731762064028,0.09367462,218.94,218.89,0.1]
[1731762064232,0.09367462,218.92,218.89,0.1]
[1731762064423,0.12549,218.91,218.89,0.1]
[1731762064732,0.1,219.01,218.85,0.1]
[1731762064733,0.12549,218.89,218.85,0.1]
[1731762064907,0.09367462,218.86,218.85,0.1]
[1731762066120,0.09367462,218.86,218.83,0.1]
[1731762066435,0.09367462,218.84,218.81,0.1]
[1731762066815,0.12549,218.85,218.83,0.1]
[1731762068614,0.12549,218.85,218.72,0.1]
[1731762068615,0.25098,219.0,218.87,0.1]
[1731762068819,0.25098,219.0,218.79,25.1163]
[1731762068820,0.12549,219.0,218.85,0.1]
[1731762069033,0.09367462,218.99,218.83,0.1]
[1731762069214,0.09367462,218.99,218.79,11.4263]
[1731762069215,7.03939901,219.02,218.89,0.1]
[1731762069413,7.03939901,219.04,218.91,0.1]
[1731762070110,7.13307363,219.03,218.91,0.1]
[1731762070725,7.13307363,219.03,218.87,0.1]
[1731762070726,0.12549,219.0,218.87,0.1]
[1731762070927,0.12549,219.0,218.9,0.1]
[1731762070928,0.09367462,218.97,218.9,0.1]
[1731762071135,0.21916462,218.97,218.9,0.1]
[1731762071432,0.09367462,218.93,218.9,0.1]
[1731762071632,0.21916462,218.93,218.9,0.1]
[1731762071830,0.21916462,218.91,218.9,0.1]
[1731762072223,0.21916462,218.91,218.89,0.1]
[1731762072826,0.21916462,218.91,218.9,0.1]
[1731762074027,0.12549,219.0,218.92,0.1]
[1731762074340,0.09367462,219.0,218.92,0.1]
[1731762076039,0.09367462,219.0,218.88,0.1]
[1731762076247,0.09367462,218.98,218.88,0.1]
[1731762076441,0.09367462,218.98,218.9,0.1]
[1731762077321,0.09367462,218.96,218.9,0.1]
[1731762077523,0.21916462,218.94,218.9,0.1]
[1731762077745,0.12549,218.93,218.92,0.1]
[1731762078320,7.03939901,218.99,218.96,0.1]
[1731762078529,7.03939901,219.01,218.98,0.1]
[1731762078737,0.08738114,218.99,218.98,0.1]
[1731762078938,0.18105576,218.99,218.98,0.1]
[1731762079142,0.08738114,218.99,218.98,0.1]
[1731762079865,0.08738114,218.99,218.98,13.87394055]
[1731762080723,0.08738114,218.99,218.98,22.10926204]
[1731762081141,0.08738114,218.99,218.98,0.1]
[1731762081938,0.08738114,218.99,218.98,22.10926204]
[1731762082138,0.08738114,218.99,218.98,59.57614604]
[1731762082347,0.08738114,218.99,218.98,79.57614604]
[1731762084248,0.08738114,218.99,218.98,79.80163604]
[1731762084642,0.08738114,218.99,218.98,79.57614604]
[1731762085151,0.08738114,218.99,218.98,35.79926204]
[1731762085539,0.08738114,218.99,218.98,22.10926204]
[1731762086338,0.08738114,218.99,218.98,0.1]
[1731762086733,0.30654576,218.99,218.98,0.1]
[1731762087463,0.08738114,218.99,218.98,0.1]
[1731762090872,0.21287114,218.99,218.96,0.1]
[1731762091067,0.34465462,218.98,218.96,0.1]
[1731762096288,0.21916462,218.98,218.96,0.1]
[1731762096792,0.21916462,218.96,218.92,0.1]
[1731762096969,0.21916462,218.96,218.72,70.0]
[1731762096970,0.09367462,218.92,218.88,0.1]
[1731762097291,0.21916462,218.9,218.82,0.1]
[1731762097587,0.21916462,218.9,218.8,26.57946204]
[1731762097588,0.21916462,218.9,218.89,0.1]
[1731762098376,0.21916462,218.91,218.87,0.1]
[1731762098709,0.21916462,218.91,218.8,4.5702]
[1731762098710,0.08856291,218.9,218.89,0.1]
[1731762099060,0.12549,218.89,218.86,0.1]
[1731762099287,0.34465462,218.88,218.84,0.1]
[1731762099989,0.34465462,218.88,218.86,0.1]
[1731762100885,0.12549,218.89,218.84,0.1]
[1731762101070,0.12549,218.89,218.88,0.1]
[1731762101272,0.12549,218.89,218.82,13.77949384]
[1731762101273,0.09367462,218.88,218.86,0.1]
[1731762102702,0.09367462,218.82,218.81,0.1]
[1731762102994,0.09367462,218.82,218.68,0.1]
[1731762102995,0.09367462,218.8,218.79,0.1]
[1731762104290,0.09367462,218.8,218.77,0.1]
[1731762104605,0.09367462,218.8,218.79,0.1]
[1731762104781,0.12549,218.81,218.79,0.1]
[1731762106604,0.21916462,218.8,218.76,0.1]
[1731762106911,0.09367462,218.78,218.76,0.1]
[1731762107291,0.21916462,218.77,218.76,0.1]
[1731762107777,20.0,218.87,218.78,0.1]
[1731762107979,0.25098,218.89,218.81,0.1]
[1731762108392,0.09367462,218.88,218.81,0.1]
[1731762108701,0.09367462,218.88,218.68,33.59161627]
[1731762108702,0.09367462,218.88,218.79,0.1]
[1731762109507,0.25098,218.87,218.81,0.1]
[1731762109720,0.08856291,218.9,218.84,0.1]
[1731762109915,0.08856291,218.9,218.86,0.1]
[1731762110591,0.18223753,218.9,218.86,0.1]
[1731762110791,0.18223753,218.9,218.84,0.1]
[1731762110999,0.18223753,218.9,218.77,22.05971627]
[1731762111000,0.09367462,218.88,218.86,0.1]
[1731762112108,0.09367462,218.88,218.84,0.1]
[1731762112312,0.12549,218.87,218.86,0.1]
[1731762117309,0.09367462,218.86,218.84,0.1]
[1731762118098,0.09367462,218.87,218.86,0.1]
[1731762118308,0.12549,218.89,218.88,0.1]
[1731762118803,0.09626292,218.89,218.88,0.1]
[1731762119007,0.09626292,218.89,218.88,22.15971627]
[1731762119612,0.09626292,218.89,218.88,0.1]
[1731762121005,0.09626292,218.89,218.88,23.07310547]
[1731762121508,0.09626292,218.89,218.88,22.15971627]
[1731762122020,0.09626292,218.89,218.88,0.1]
[1731762122314,0.31542754,218.89,218.88,0.1]
[1731762122692,0.09626292,218.89,218.88,0.1]
[1731762122897,0.09626292,218.89,218.88,1.01348163]
[1731762123114,7.03939901,219.11,218.95,161.74691837]
[1731762123303,42.73741894,219.13,218.95,161.74691837]
[1731762123304,7.03939901,219.13,218.95,22.15971627]
[1731762123506,7.03939901,219.15,218.95,22.15971627]
[1731762123813,7.03939901,219.14,218.95,22.15971627]
[1731762124006,0.09367462,219.13,218.95,22.15971627]
[1731762124528,7.03939901,219.15,218.95,22.15971627]
[1731762124821,20.0,219.14,218.95,13.85656054]
[1731762125130,0.09367462,219.11,218.95,0.1]
[1731762125425,27.13307363,219.11,218.95,0.1]
[1731762125631,27.13307363,219.11,218.95,13.85656054]
[1731762125803,7.03939901,219.14,218.95,18.42376054]
[1731762126002,0.09367462,219.13,218.95,18.42376054]
[1731762126516,0.09367462,219.13,218.95,42.20064454]
[1731762126714,7.03939901,219.15,218.95,42.20064454]
[1731762126921,7.03939901,219.15,218.95,50.45290383]
[1731762127120,0.09367462,219.14,218.95,50.45290383]
[1731762127617,20.0,219.16,218.95,70.45290383]
[1731762127806,0.09367462,219.15,218.95,70.45290383]
[1731762128406,27.13307363,219.17,218.95,50.45290383]
[1731762128604,0.09367462,219.13,219.04,0.1]
[1731762130496,0.09367462,219.13,219.02,0.1]
[1731762130700,0.09367462,219.11,219.02,0.1]
[1731762131015,0.09367462,219.11,219.08,0.1]
[1731762131197,0.09367462,219.11,219.03,0.1]
[1731762131397,0.09367462,219.11,218.94,11.4186]
[1731762131398,0.09367462,219.11,219.01,0.1]
[1731762132021,0.09367462,219.11,219.03,0.1]
[1731762132202,0.09367462,219.11,219.05,0.1]
[1731762132922,0.88248991,219.16,219.07,0.1]
[1731762133122,3.69638762,219.18,219.16,0.1]
[1731762133439,11.61827654,219.27,219.16,0.1]
[1731762133614,4.57887753,219.27,219.17,0.1]
[1731762133814,0.09367462,219.26,219.17,0.1]
[1731762134447,0.09367462,219.18,218.97,11.4169]
[1731762134737,0.34465462,219.18,219.01,22.00881983]
[1731762134917,0.34465462,219.18,219.03,22.00881983]
[1731762136258,0.34465462,219.18,219.01,22.00881983]
[1731762136409,0.34465462,219.18,218.99,22.00881983]
[1731762136615,23.99604862,219.16,218.99,22.00881983]
[1731762136941,24.12153862,219.16,219.02,22.00881983]
[1731762137529,20.0,219.24,219.07,22.00881983]
[1731762137735,0.88248991,219.24,219.05,22.00881983]
[1731762137913,0.19367462,219.23,219.03,22.00881983]
[1731762138326,0.09367462,219.21,219.02,22.00881983]
[1731762138533,0.09367462,219.21,219.03,22.00881983]
[1731762138734,0.08533055,219.04,219.03,22.00881983]
[1731762140247,0.08533055,219.04,219.02,22.00881983]
[1731762140535,0.08533055,219.04,219.03,22.00881983]
[1731762140836,7.13939901,219.3,219.08,185.6100316]
[1731762141038,7.13939901,219.3,219.08,45.78570383]
[1731762141240,0.1,219.3,219.08,45.78570383]
[1731762141739,0.1,219.3,219.07,22.00881983]
[1731762141740,0.2,219.3,219.07,22.00881983]
[1731762142040,0.2,219.3,219.08,35.69881983]
[1731762142936,0.1,219.28,219.08,22.00881983]
[1731762143245,0.2,219.28,219.07,22.00881983]
[1731762143618,0.1,219.28,219.08,22.00881983]
[1731762143836,0.1,219.3,219.08,22.00881983]
[1731762145142,0.1,219.28,219.08,22.00881983]
[1731762145616,9.805387,219.31,219.08,80.5136181]
[1731762145943,0.88248991,219.36,219.18,13.69]
[1731762146134,7.03939901,219.4,219.2,22.00881983]
[1731762146351,0.09367462,219.28,219.16,22.00881983]
[1731762146839,4.67887753,219.38,219.09,16.20059]
[1731762146840,4.67887753,219.38,219.19,22.00881983]
[1731762147629,20.0,219.37,219.19,22.00881983]
[1731762147825,4.57887753,219.38,219.21,22.00881983]
[1731762148129,7.03939901,219.46,219.27,22.00881983]
[1731762148432,7.03939901,219.46,219.26,22.00881983]
[1731762148647,7.13939901,219.47,219.25,22.00881983]
[1731762148850,0.1,219.46,219.26,22.00881983]
[1731762149237,0.1,219.44,219.23,11.4035]
[1731762149429,0.1,219.43,219.22,22.00881983]
[1731762149635,7.23939901,219.48,219.26,22.00881983]
[1731762149836,7.13939901,219.48,219.27,22.00881983]
[1731762150035,0.1,219.48,219.27,22.00881983]
[1731762150450,0.2,219.48,219.26,22.00881983]
[1731762151440,0.2,219.48,219.27,22.00881983]
[1731762151657,0.517778,219.5,219.28,65.78570383]
[1731762151855,0.1,219.49,219.28,22.00881983]
[1731762152265,0.617778,219.5,219.28,22.00881983]
[1731762152441,0.2,219.48,219.26,22.00881983]
[1731762152629,0.2,219.48,219.25,65.78570383]
[1731762153050,0.2,219.48,219.26,22.00881983]
[1731762153244,0.717778,219.5,219.28,22.00881983]
[1731762153556,0.517778,219.5,219.28,65.78570383]
[1731762154057,0.517778,219.5,219.33,161.746948]
[1731762154249,0.517778,219.5,219.28,79.69486845]
[1731762154250,0.517778,219.5,219.37,22.00881983]
[1731762154451,0.517778,219.5,219.31,13.79]
[1731762154452,0.517778,219.5,219.39,22.00881983]
[1731762154784,0.09367462,219.49,219.37,22.00881983]
[1731762155064,0.09367462,219.49,219.35,22.00881983]
[1731762155268,0.09367462,219.49,219.3,13.79]
[1731762155269,0.517778,219.5,219.36,22.00881983]
[1731762155768,0.517778,219.5,219.49,13.90916462]
[1731762155953,0.517778,219.5,219.49,43.776884]
[1731762156355,0.517778,219.5,219.48,22.00881983]
[1731762156572,0.517778,219.5,219.46,22.00881983]
[1731762156866,0.517778,219.5,219.44,22.00881983]
[1731762157667,0.517778,219.5,219.38,25.0854]
[1731762157668,0.517778,219.5,219.42,22.00881983]
[1731762158053,0.09367462,219.49,219.41,22.00881983]
[1731762158261,0.09367462,219.49,219.38,11.3954]
[1731762158262,0.21916462,219.49,219.4,22.00881983]
[1731762158789,0.0855716,219.41,219.4,22.00881983]
[1731762158972,0.0855716,219.41,219.38,22.00881983]
[1731762159269,0.0855716,219.41,219.37,22.00881983]
[1731762160274,0.0855716,219.41,219.33,0.91129922]
[1731762160275,0.0855716,219.41,219.4,22.00881983]
[1731762160650,0.0855716,219.41,219.4,22.92002942]
[1731762161171,0.0855716,219.41,219.39,22.00881983]
[1731762161472,0.0855716,219.41,219.4,22.00881983]
[1731762162371,0.0855716,219.41,219.38,22.00881983]
[1731762163479,0.0855716,219.41,219.39,22.00881983]
[1731762163974,0.0855716,219.41,219.4,22.92011163]
[1731762166258,0.0855716,219.41,219.4,46.69699563]
[1731762166459,0.1,219.67,219.45,161.86007087]
[1731762166676,0.1,219.62,219.44,22.00881983]
[1731762166957,0.1,219.67,219.45,35.69881983]
[1731762167183,0.1,219.67,219.45,79.47570383]
[1731762167986,0.2,219.69,219.45,79.47570383]
[1731762168283,0.1,219.69,219.45,106.04132366]
[1731762168580,0.617778,219.72,219.45,106.04132366]
[1731762168581,0.1,219.67,219.45,84.03250383]
[1731762169373,0.1,219.69,219.45,106.95216026]
[1731762169566,0.1,219.69,219.45,84.94334043]
[1731762169981,0.1,219.71,219.45,84.94334043]
[1731762170192,0.1,219.71,219.35,0.2]
[1731762170193,0.1,219.62,219.35,0.2]
[1731762170497,0.1,219.57,219.36,22.00881983]
[1731762170693,0.12549,219.45,219.34,22.00881983]
[1731762170875,0.12549,219.45,219.33,22.00881983]
[1731762171272,0.12549,219.45,219.33,13.69]
[1731762171273,0.12549,219.43,219.33,13.69]
[1731762171484,0.34465462,219.43,219.31,35.69881983]
[1731762171687,0.34465462,219.43,219.31,13.69]
[1731762172391,0.34465462,219.43,219.29,22.00881983]
[1731762172597,0.34465462,219.43,219.29,35.69881983]
[1731762173100,0.34465462,219.43,219.27,22.00881983]
[1731762173294,0.34465462,219.43,219.25,47.10121983]
[1731762173594,24.12153862,219.41,219.26,22.00881983]
[1731762173769,0.34465462,219.39,219.27,22.00881983]
[1731762173974,0.34465462,219.39,219.28,22.00881983]
[1731762174292,0.34465462,219.39,219.31,22.00881983]
[1731762174593,24.11132271,219.46,219.32,22.00881983]
[1731762174778,0.09367462,219.43,219.32,22.00881983]
[1731762175198,0.09367462,219.41,219.29,22.00881983]
[1731762175401,0.09367462,219.39,219.29,22.00881983]
[1731762175696,0.09367462,219.35,219.27,22.00881983]
[1731762176098,0.12549,219.36,219.29,22.00881983]
[1731762176293,0.08345871,219.46,219.33,22.00881983]
[1731762176294,0.12549,219.4,219.33,22.00881983]
[1731762176482,0.08345871,219.46,219.33,22.00881983]
[1731762176881,0.08345871,219.46,219.36,13.69]
[1731762177075,0.08345871,219.46,219.35,22.00881983]
[1731762177482,0.17713333,219.46,219.36,22.00881983]
[1731762177689,0.17713333,219.46,219.35,22.00881983]
[1731762178100,0.09367462,219.44,219.35,22.00881983]
[1731762178597,0.082705,219.36,219.35,22.00881983]
[1731762178899,0.082705,219.36,219.35,22.92019818]
[1731762179984,0.082705,219.36,219.34,22.00881983]
[1731762180189,0.082705,219.36,219.35,0.91144511]
[1731762180796,0.208195,219.36,219.31,0.91146243]
[1731762180978,0.082705,219.36,219.35,22.00881983]
[1731762182601,0.082705,219.36,219.35,22.92027457]
[1731762182781,0.082705,219.36,219.35,22.00881983]
[1731762183487,0.082705,219.36,219.34,22.00881983]
[1731762184002,0.082705,219.36,219.32,0.91132284]
[1731762184205,0.082705,219.36,219.35,22.92031212]
[1731762184879,0.082705,219.36,219.35,36.61031212]
[1731762185089,0.082705,219.36,219.35,80.38719612]
[1731762185682,0.09553764,219.38,219.35,80.38719612]
[1731762185683,0.1,219.59,219.41,161.75608604]
[1731762185885,0.2,219.61,219.41,22.00881983]
[1731762186080,0.1,219.62,219.41,22.00881983]
[1731762186303,0.1,219.6,219.41,22.00881983]
[1731762186613,0.1,219.64,219.41,79.47570383]
[1731762186903,0.2,219.66,219.41,79.47570383]
[1731762187104,0.1,219.69,219.41,101.80368828]
[1731762187604,0.1,219.73,219.43,57.91153862]
[1731762187803,0.1,219.7,219.49,79.47570383]
[1731762187984,0.617778,219.72,219.49,79.47570383]
[1731762188186,0.517778,219.72,219.49,79.60119383]
[1731762188384,0.517778,219.72,219.49,79.47570383]
[1731762188605,0.1,219.7,219.49,22.00881983]
[1731762188791,0.517778,219.72,219.49,79.47570383]
[1731762188983,0.1,219.68,219.49,22.00881983]
[1731762189579,0.2,219.68,219.48,22.00881983]
[1731762189808,0.2,219.68,219.49,22.00881983]
[1731762189988,0.1,219.68,219.49,22.00881983]
[1731762190187,0.2,219.68,219.49,22.00881983]
[1731762190393,0.1,219.68,219.49,22.00881983]
[1731762190904,0.1,219.66,219.49,22.00881983]
[1731762191110,0.1,219.66,219.47,33.39961983]
[1731762191405,0.21916462,219.49,219.41,22.00881983]
[1731762191604,0.21916462,219.49,219.4,33.40301983]
[1731762191789,0.21916462,219.49,219.41,22.00881983]
[1731762192719,0.21916462,219.47,219.39,22.00881983]
[1731762193011,0.1,219.62,219.45,22.00881983]
[1731762193315,0.1,219.64,219.48,22.00881983]
[1731762193609,0.1,219.64,219.36,15.9552]
[1731762193610,0.1,219.61,219.46,22.00881983]
[1731762193810,0.1,219.61,219.44,22.00881983]
[1731762193991,0.1,219.63,219.47,22.00881983]
[1731762194197,0.2,219.64,219.47,22.00881983]
[1731762194419,0.1,219.64,219.47,22.00881983]
[1731762194589,0.1,219.63,219.49,22.00881983]
[1731762194899,0.1,219.63,219.47,22.00881983]
[1731762195419,0.1,219.63,219.48,22.00881983]
[1731762195599,0.1,219.63,219.47,22.00881983]
[1731762195802,0.1,219.63,219.49,22.00881983]
[1731762195999,0.1,219.63,219.47,22.00881983]
[1731762197022,0.1,219.64,219.49,22.00881983]
[1731762197498,0.1,219.65,219.49,22.00881983]
[1731762197693,0.1,219.64,219.49,22.00881983]
[1731762198021,0.1,219.65,219.49,22.00881983]
[1731762198314,0.1,219.64,219.49,22.00881983]
[1731762198619,0.60738799,219.5,219.49,22.00881983]
[1731762199510,0.60738799,219.5,219.48,22.00881983]
[1731762199711,0.60738799,219.5,219.49,0.91090638]
[1731762200405,0.60738799,219.5,219.46,22.00881983]
[1731762200606,0.12549,219.49,219.44,0.91091261]
[1731762201516,0.09367462,219.48,219.41,22.00881983]
[1731762202014,0.09367462,219.48,219.42,13.69]
[1731762202618,0.09367462,219.48,219.42,14.60107931]
[1731762203119,0.09367462,219.48,219.42,0.91107931]
[1731762204219,0.12549,219.45,219.35,13.69]
[1731762204404,0.09367462,219.44,219.32,22.92015679]
[1731762204604,0.12549,219.43,219.31,33.40761983]
[1731762204809,0.09367462,219.4,219.32,13.71337437]
[1731762206822,0.09367462,219.4,219.32,21.9418936]
[1731762207015,0.09367462,219.38,219.3,59.4087776]
[1731762207517,0.09367462,219.38,219.33,21.9418936]
[1731762208216,0.09367462,219.38,219.32,21.9418936]
[1731762209639,0.09367462,219.38,219.23,21.9418936]
[1731762209640,0.09367462,219.36,219.28,21.9418936]
[1731762209823,0.09367462,219.32,219.24,21.9418936]
[1731762210155,0.09367462,219.32,219.25,21.9418936]
[1731762210636,0.09367462,219.32,219.23,15.9645]
[1731762210637,0.09367462,219.3,219.23,35.6318936]
[1731762210814,0.09367462,219.3,219.23,13.69]
[1731762211133,0.21916462,219.3,219.21,21.9418936]
[1731762211349,0.09367462,219.28,219.24,21.9418936]
[1731762211638,0.12549,219.29,219.27,21.9418936]
[1731762211934,20.0,219.42,219.28,21.9418936]
[1731762212134,14.34580631,219.44,219.23,21.9418936]
[1731762212135,0.12549,219.39,219.29,21.9418936]
[1731762212312,0.09367462,219.38,219.29,21.9418936]
[1731762212510,0.09367462,219.34,219.25,21.9418936]
[1731762212719,0.21916462,219.3,219.25,21.9418936]
[1731762212917,0.12549,219.29,219.25,21.9418936]
[1731762214566,7.03939901,219.44,219.28,21.9418936]
[1731762214749,0.1,219.45,219.3,21.9418936]
[1731762214947,7.03939901,219.46,219.34,21.9418936]
[1731762215219,7.03939901,219.47,219.34,21.9418936]
[1731762215353,0.09367462,219.46,219.34,21.9418936]
[1731762215759,7.23939901,219.48,219.34,21.9418936]
[1731762215760,7.13939901,219.48,219.34,21.9418936]
[1731762216268,24.12153862,219.47,219.34,21.9418936]
[1731762216471,24.12153862,219.43,219.34,21.9418936]
[1731762216644,0.34465462,219.41,219.34,21.9418936]
[1731762217753,20.0,219.47,219.36,21.9418936]
[1731762218051,0.09367462,219.49,219.37,21.9418936]
[1731762218268,0.09367462,219.47,219.34,21.9418936]
[1731762218647,0.08855114,219.35,219.34,21.9418936]
[1731762219554,0.08855114,219.35,219.34,22.85325095]
[1731762220651,7.03939901,219.52,219.43,161.48618606]
[1731762220852,56.53283253,219.58,219.43,161.48618606]
[1731762220853,7.03939901,219.57,219.43,21.9418936]
[1731762221055,0.09367462,219.49,219.43,21.9418936]
[1731762221254,0.09367462,219.49,219.4,21.9418936]
[1731762221461,0.09367462,219.49,219.39,21.9418936]
[1731762221672,0.09367462,219.49,219.37,21.9418936]
[1731762221861,0.09367462,219.49,219.38,21.9418936]
[1731762222064,0.09367462,219.49,219.39,21.9418936]
[1731762222274,0.09367462,219.49,219.41,21.9418936]
[1731762222475,0.09367462,219.49,219.42,21.9418936]
[1731762222709,0.09367462,219.49,219.4,21.9418936]
[1731762223177,0.09367462,219.49,219.41,21.9418936]
[1731762224155,0.09367462,219.49,219.38,29.24623893]
[1731762224156,7.03939901,219.57,219.43,21.9418936]
[1731762224462,0.09367462,219.49,219.42,21.9418936]
[1731762224987,0.1,219.56,219.42,21.9418936]
[1731762225184,0.09367462,219.49,219.43,21.9418936]
[1731762226975,0.09367462,219.49,219.43,13.69961563]
[1731762227960,0.09367462,219.49,219.42,13.69961563]
[1731762228580,20.0,219.57,219.43,13.69961563]
[1731762228960,0.09367462,219.49,219.41,37.47649963]
[1731762229664,0.09367462,219.49,219.42,13.69961563]
[1731762230362,0.09367462,219.49,219.41,37.47649963]
[1731762231448,0.09367462,219.49,219.41,23.776884]
[1731762231944,0.09367462,219.49,219.41,37.47649963]
[1731762235648,0.09367462,219.49,219.35,25.0871]
[1731762235835,0.09367462,219.49,219.38,27.38961563]
[1731762236343,0.09367462,219.49,219.37,13.69961563]
[1731762237138,0.09367462,219.49,219.37,23.776884]
[1731762238654,0.0859892,219.38,219.37,23.776884]
[1731762238848,0.0859892,219.38,219.37,24.68808876]
[1731762239454,0.0859892,219.38,219.37,38.38770439]
[1731762241042,0.0859892,219.38,219.37,0.91120476]
[1731762241379,0.0859892,219.38,219.36,0.9112982]
[1731762242648,0.0859892,219.38,219.37,13.69961563]
[1731762243264,0.08291026,219.42,219.41,199.4155904]
[1731762243464,0.08291026,219.42,219.41,213.11520603]
[1731762244158,0.08291026,219.42,219.41,213.43437065]
[1731762244354,0.08291026,219.42,219.41,217.89197065]
[1731762245269,0.08291026,219.42,219.41,217.67280603]
[1731762246760,0.08291026,219.42,219.41,161.9487064]
[1731762246962,0.08291026,219.42,219.4,13.69961563]
[1731762247474,0.08291026,219.42,219.41,13.69961563]
[1731762247665,0.08291026,219.42,219.4,14.61073274]
[1731762247867,0.08291026,219.42,219.41,13.69961563]
[1731762248356,0.08291026,219.42,219.4,13.69961563]
[1731762248566,0.08291026,219.42,219.38,13.69961563]
[1731762248888,0.08291026,219.42,219.39,13.69961563]
[1731762249181,0.08291026,219.42,219.38,13.69961563]
[1731762249761,0.08291026,219.42,219.39,13.69961563]
[1731762250167,0.08291026,219.42,219.4,51.16649963]
[1731762250473,7.13939901,219.59,219.45,185.7026676]
[1731762250772,7.03939901,219.61,219.45,51.16649963]
[1731762251076,7.13939901,219.62,219.45,51.16649963]
[1731762251248,0.1,219.62,219.45,51.16649963]
[1731762251586,7.13939901,219.62,219.45,51.16649963]
[1731762252076,7.13939901,219.64,219.45,69.42291526]
[1731762252281,7.03939901,219.64,219.45,70.45904877]
[1731762252458,7.03939901,219.65,219.45,70.45904877]
[1731762252657,0.1,219.64,219.45,70.45904877]
[1731762252975,14.24580631,219.66,219.45,70.45904877]
[1731762252976,21.38520532,219.66,219.45,70.45904877]
[1731762253287,7.13939901,219.66,219.45,70.45904877]
[1731762253459,7.13939901,219.66,219.45,70.87821339]
[1731762253657,7.03939901,219.66,219.45,70.87821339]
[1731762253955,7.03939901,219.69,219.54,0.1]
[1731762254156,7.55717701,219.72,219.63,13.69961563]
[1731762254359,0.09367462,219.71,219.63,13.69961563]
[1731762254571,0.517778,219.72,219.63,13.69961563]
[1731762255484,0.517778,219.72,219.64,13.69961563]
[1731762255666,0.517778,219.72,219.65,13.69961563]
[1731762256183,0.517778,219.72,219.66,23.776884]
[1731762256780,0.517778,219.72,219.69,21.87245778]
[1731762256986,0.517778,219.72,219.71,45.64934178]
[1731762258366,7.03939901,219.88,219.75,161.782222]
[1731762258684,7.03939901,219.88,219.7,18.2415]
[1731762258685,0.09663159,219.75,219.74,45.64934178]
[1731762258984,0.09663159,219.75,219.74,23.776884]
[1731762259185,0.09663159,219.75,219.72,22.78216793]
[1731762259186,0.09663159,219.75,219.73,23.776884]
[1731762259776,0.09663159,219.75,219.69,21.87245778]
[1731762259979,0.09663159,219.75,219.71,23.776884]
[1731762260163,0.09663159,219.75,219.71,45.64934178]
[1731762260368,0.09663159,219.75,219.73,23.776884]
[1731762260879,0.09663159,219.75,219.73,45.64934178]
[1731762261172,0.09663159,219.75,219.74,64.7998337]
[1731762262488,0.09663159,219.75,219.74,60.2490337]
[1731762263167,0.09663159,219.75,219.74,59.33934178]
[1731762263907,0.09663159,219.75,219.71,11.3783]
[1731762263908,0.09663159,219.75,219.72,14.59956146]
[1731762264081,0.09663159,219.75,219.72,36.47201924]
[1731762264283,0.09663159,219.75,219.72,13.69]
[1731762264885,0.09663159,219.75,219.74,13.69]
[1731762265778,0.09663159,219.75,219.72,13.69]
[1731762265985,0.09663159,219.75,219.68,21.87245778]
[1731762266178,0.09663159,219.75,219.67,21.87245778]
[1731762266179,0.22212159,219.75,219.67,21.87245778]
[1731762266566,0.22212159,219.75,219.68,21.87245778]
[1731762266790,0.22212159,219.75,219.69,13.69]
[1731762267468,0.09663159,219.75,219.71,21.87245778]
[1731762267669,0.09663159,219.75,219.72,21.87245778]
[1731762267869,0.09663159,219.75,219.71,21.87245778]
[1731762268185,0.09663159,219.75,219.72,23.776884]
[1731762268778,0.09663159,219.75,219.73,23.776884]
[1731762270773,0.09663159,219.75,219.73,45.64934178]
[1731762270989,0.09663159,219.75,219.74,35.56245778]